Workbook

Sheet CreateQuiz
E1: Risk Assessment Questions | AH1: 0
AH2: 1
AH3: 2
D4: Quiz Name: | F4: Risk Assessment Test | J4: =D4:J4 -> 0 | AH4: 3
A5: Sel. Quest. Row | B5: 66 | D5: Question # | E5: Question Type | F5: Question | G5: Add Picture | H5: Possible Answers | I5: Correct Answer(s) | AH5: 4
D6: 1 | E6: Checkboxes | F6: How many users do you have? | H6: High (1000 +) | I6: ü | K6: 0
H7: Medium (500-1000) | I7: ü | K7: 1
H8: Low (0 - 500) | I8: ü | K8: 2
K9: 3
K10: 4
D11: =D6+1 -> 2 | E11: Multiple Choice | F11: Do you use windows? | H11: Yes | I11: ü | K11: 0
H12: No | K12: 1
K13: 2
K14: 3
K15: 4
D16: =D11+1 -> 3 | E16: Multiple Choice | F16: Do you use Anti-virus? | H16: Yes | K16: 0
H17: No | I17: ü | K17: 1
K18: 2
K19: 3
K20: 4
D21: =D16+1 -> 4 | E21: Checkboxes | F21: How often do you perform system scans? | H21: Daily | K21: 0
H22: Weekly | K22: 1
H23: Monthly | I23: ü | K23: 2
H24: Never | I24: ü | K24: 3
K25: 4
D26: =D21+1 -> 5 | E26: Checkboxes | F26: Is your hardware up to date? | H26: Yes | I26: ü | K26: 0
H27: No | I27: ü | K27: 1
K28: 2
K29: 3
K30: 4
D31: =D26+1 -> 6 | E31: Checkboxes | F31: Is your system up to date? | H31: Yes | I31: ü | K31: 0
H32: No | I32: ü | K32: 1
K33: 2
K34: 3
K35: 4
D36: =D31+1 -> 7 | E36: Checkboxes | F36: How many scam emails do you receive? | H36: More than 15 | I36: ü | K36: 0
H37: From 10 to 15 | I37: ü | K37: 1
H38: From 5 to 10 | K38: 2
H39: Fewer than 5 | K39: 3
K40: 4
D41: =D36+1 -> 8 | E41: Multiple Choice | F41: Do you implement website access and download restrictions? | H41: Yes | K41: 0
H42: No | I42: ü | K42: 1
K43: 2
K44: 3
K45: 4
D46: =D41+1 -> 9 | E46: Multiple Choice | F46: Do you implement email download restrictions? | H46: Yes | K46: 0
H47: No | I47: ü | K47: 1
K48: 2
K49: 3
K50: 4
D51: =D46+1 -> 10 | E51: Checkboxes | F51: What is your average income? | H51: <100,000 | I51: ü | K51: 0
H52: >100,000 | I52: ü | K52: 1
K53: 2
K54: 3
K55: 4
D56: =D51+1 -> 11 | E56: Multiple Choice | F56: Do you have a secure internet connection? | H56: Yes | K56: 0
H57: No | I57: ü | K57: 1
K58: 2
K59: 3
K60: 4
D61: =D56+1 -> 12 | E61: Multiple Choice | F61: Do you use a VPN? | H61: Yes | K61: 0
H62: No | I62: ü | K62: 1
K63: 2
K64: 3
K65: 4
D66: =D61+1 -> 13 | E66: Multiple Choice | F66: Do you implement White list for inputs? | H66: Yes | I66: ü | K66: 0
H67: No | K67: 1
K68: 2
K69: 3
K70: 4
D71: =D66+1 -> 14 | E71: Multiple Choice | F71: Do you parameterise statements? | H71: Yes | I71: ü | K71: 0
H72: No | K72: 1
K73: 2
K74: 3
K75: 4
D76: =D71+1 -> 15 | E76: Multiple Choice | F76: Do you utilise character escaping? | H76: Yes | I76: ü | K76: 0
H77: No | K77: 1
K78: 2
K79: 3
K80: 4
D81: =D76+1 -> 16 | E81: Multiple Choice | F81: Do you utilise a firewall? | H81: Yes | K81: 0
H82: No | I82: ü | K82: 1
K83: 2
K84: 3
K85: 4
D86: =D81+1 -> 17 | E86: Multiple Choice | F86: Do you sanitize user inputs? | H86: Yes | K86: 0
H87: No | I87: ü | K87: 1
K88: 2
K89: 3
K90: 4
D91: =D86+1 -> 18 | E91: Multiple Choice | F91: Do you display database error messages on the front end? | H91: Yes | K91: 0
H92: No | I92: ü | K92: 1
K93: 2
K94: 3
K95: 4
D96: =D91+1 -> 19 | E96: Multiple Choice | F96: Do you monitor background tasks consistently? | H96: Yes | I96: ü | K96: 0
H97: No | K97: 1
K98: 2
K99: 3
K100: 4

Sheet QuizSheet
A1: Start Time | B1: 2022-04-22T19:32:28 | C1: Results | D1: =" QUIZ RESULTS Total Assessment Questions: "&QuizResults!E2&CHAR(10)&"Worm Vulnerabilities: "&QuizResults!F2&CHAR(10)&"SQLi Vulnerabilities: "&QuizResults!G2&CHAR(10)&"" -> QUIZ RESULTS Total Assessment Questions: Worm Vulnerabilities: 0 SQLi Vulnerabilities: 0 | F1: =CreateQuiz!F4 -> Risk Assessment Test
A2: Quest # | C2: Type | D2: =IFERROR(INDEX(CreateQuiz!E6:E934,MATCH(QuizSheet!B2,QuestionNumbers,0),1),"") ->  | F2: =IF(B2="","Enter Your Name:","Question #"&B2) -> Enter Your Name:
A3: Question | B3: =IFERROR(INDEX(CreateQuiz!$F$6:$F$934,MATCH(QuizSheet!$B$2,QuestionNumbers,0),1),"") -> 
B4: Options | C4: Correct Ans. | D4: Student Answer | F4: =IF(B2="","Enter Your ID#:","") -> Enter Your ID#:
A5: Answer 1 | B5: =IFERROR(INDEX(CreateQuiz!$H$6:$H$934,MATCH(QuizSheet!$B$2,QuestionNumbers,0),1),0) -> 0 | C5: =IFERROR(INDEX(CreateQuiz!$I$6:$I$934,MATCH(QuizSheet!$B$2,QuestionNumbers,0),1),"") -> 
A6: Answer 2 | B6: =IFERROR(INDEX(CreateQuiz!$H$6:$H$934,MATCH(QuizSheet!$B$2,QuestionNumbers,0)+1,1),0) -> 0 | C6: =IFERROR(INDEX(CreateQuiz!$I$6:$I$934,MATCH(QuizSheet!$B$2,QuestionNumbers,0)+1,1),"") -> 
A7: Answer 3 | B7: =IFERROR(INDEX(CreateQuiz!$H$6:$H$934,MATCH(QuizSheet!$B$2,QuestionNumbers,0)+2,1),0) -> 0 | C7: =IFERROR(INDEX(CreateQuiz!$I$6:$I$934,MATCH(QuizSheet!$B$2,QuestionNumbers,0)+2,1),"") -> 
A8: Answer 4 | B8: =IFERROR(INDEX(CreateQuiz!$H$6:$H$934,MATCH(QuizSheet!$B$2,QuestionNumbers,0)+3,1),0) -> 0 | C8: =IFERROR(INDEX(CreateQuiz!$I$6:$I$934,MATCH(QuizSheet!$B$2,QuestionNumbers,0)+ 3,1),"") -> 
A9: Answer 5 | B9: =IFERROR(INDEX(CreateQuiz!$H$6:$H$934,MATCH(QuizSheet!$B$2,QuestionNumbers,0)+4,1),0) -> 0 | C9: =IFERROR(INDEX(CreateQuiz!$I$6:$I$934,MATCH(QuizSheet!$B$2,QuestionNumbers,0)+4,1),"") -> 
A11: Correct Ans. | B11: =IF(D2="Multiple Choice",INDEX(B5:B9,MATCH("ü",C5:C9,0),1),) -> 0
A12: User Ans. | B12: =IFERROR(IF(D2="Multiple Choice",INDEX(B5:B9,D5,1),),"") -> 0
A13: Empty Answers | B13: =COUNTBLANK(D5:D9) -> 5
F19: =B3 -> 
F21: =B5 -> 0 | G21: =B6 -> 0
F22: =B7 -> 0 | G22: =B8 -> 0
F23: =B9 -> 0

Sheet QuizResults
A1: Submitted On | B1: Name | C1: ID # | D1: Total Time | E1: Total Question | F1: Correct # | G1: Incorrect
F2: =COUNTIF(E4:E99,TRUE) -> 0 | G2: =COUNTIF(E4:E99,FALSE) -> 0
A3: Question # | B3: Question Type | C3: Correct Answer(s) | D3: User Answer(s) | E3: Correct?

Sheet Monte Carlo
B2: Value at Risk (VaR) - Monte Carlo Risk Assessment
I3: Seed Value:
A4: Yearly Value : | C4: 1000000 | H4: Iteration | I4: =EXP(($C$5-0.5*$C$6^2)*$C$7/261+$C$6*SQRT($C$7/261)*_xlfn.NORM.S.INV(RAND())) -> 1.010856459
A5: Risk Free Rate: | C5: 0 | H5: 1 | I5: =EXP(($C$5-0.5*$C$6^2)*$C$7/261+$C$6*SQRT($C$7/261)*_xlfn.NORM.S.INV(RAND())) -> 1.247214446
A6: Expected Volatility: | C6: 0.1 | H6: 2 | I6: 0.8825686039
A7: Time (days): | C7: 365 | H7: 3 | I7: 0.9519604304
D8: FAIR Standard | H8: 4 | I8: 1.219757824
A9: VaR Monte Carlo | D9: Percent Loss | F9: Absolute Loss | H9: 5 | I9: 0.9939348086
B10: Likely | C10: 0.95 | D10: =1 -_xlfn.PERCENTILE.INC(I5:I5004,1-C10) -> 0.1812774272 | F10: =D10*C4 -> 181277.4272 | H10: 6 | I10: 0.8972088788
B11: Unlikely | C11: 0.99 | D11: =1-_xlfn.PERCENTILE.INC(I6:I5005,1-C11) -> 0.2375273489 | F11: =D11*C4 -> 237527.3489 | H11: 7 | I11: 0.9177459221
H12: 8 | I12: 1.243366618
D13: NIST Standard | H13: 9 | I13: 0.8353425811
D14: Percent Loss | F14: Absolute Loss | H14: 10 | I14: 0.8674118501
B15: Likely | C15: 0.5 | D15: =1 -_xlfn.PERCENTILE.INC(I5:I5004,1-C15) -> 0.006681053895 | F15: =D15*C4 -> 6681.053895 | H15: 11 | I15: 1.110490099
B16: Unlikely | C16: 0.9 | D16: =1 -_xlfn.PERCENTILE.INC(I5:I5004,1-C16) -> 0.1472506633 | F16: =D16*C4 -> 147250.6633 | H16: 12 | I16: 0.8933470101
B17: Worst Case | C17: 0.99 | D17: =1 -_xlfn.PERCENTILE.INC(I5:I5004,1-C17) -> 0.237523064 | F17: =D17*C4 -> 237523.064 | H17: 13 | I17: 1.03931956
H18: 14 | I18: 0.9126834744
H19: 15 | I19: 1.043323121
H20: 16 | I20: 0.797235321
H21: 17 | I21: 1.051230124
H22: 18 | I22: 1.058650128
H23: 19 | I23: 0.9688783868
H24: 20 | I24: 0.9304003757
H25: 21 | I25: 1.055981424
H26: 22 | I26: 1.093043285
H27: 23 | I27: 0.8039424902
H28: 24 | I28: 1.143067976
H29: 25 | I29: 1.026155508
H30: 26 | I30: 0.9412537845
H31: 27 | I31: 1.034080609
H32: 28 | I32: 1.07499046
H33: 29 | I33: 0.7859487652
H34: 30 | I34: 1.019505604
H35: 31 | I35: 1.143466577
H36: 32 | I36: 0.8302963571
H37: 33 | I37: 1.071438362
H38: 34 | I38: 0.795857289
H39: 35 | I39: 0.8610257016
H40: 36 | I40: 0.9047597314
H41: 37 | I41: 0.9498036926
H42: 38 | I42: 0.9822240764
H43: 39 | I43: 0.9754908839
H44: 40 | I44: 0.9629426198
H45: 41 | I45: 1.1194305
H46: 42 | I46: 1.045439058
H47: 43 | I47: 0.9551813641
H48: 44 | I48: 1.061109615
H49: 45 | I49: 0.9647355654
H50: 46 | I50: 0.9139745258
H51: 47 | I51: 0.9108531462
H52: 48 | I52: 0.9702308976
H53: 49 | I53: 0.9319665829
H54: 50 | I54: 1.079729297
H55: 51 | I55: 0.9744421259
H56: 52 | I56: 0.8501971553
H57: 53 | I57: 1.007195311
H58: 54 | I58: 0.8472348639
H59: 55 | I59: 0.9474684577
H60: 56 | I60: 0.9184451794
H61: 57 | I61: 1.153507357
H62: 58 | I62: 1.037759118
H63: 59 | I63: 0.8702200249
H64: 60 | I64: 1.167799981
H65: 61 | I65: 1.040450726
H66: 62 | I66: 0.8750307335
H67: 63 | I67: 0.8733581417
H68: 64 | I68: 0.9812981794
H69: 65 | I69: =EXP(($C$5-0.5*$C$6^2)*$C$7/261+$C$6*SQRT($C$7/261)*_xlfn.NORM.S.INV(RAND())) -> 0.7813531331
H70: 66 | I70: 0.9481324189
H71: 67 | I71: 1.146605719
H72: 68 | I72: 0.9892578373
H73: 69 | I73: 0.9228239979
H74: 70 | I74: 1.038128699
H75: 71 | I75: 1.111759066
H76: 72 | I76: 1.019188543
H77: 73 | I77: 0.9019144334
H78: 74 | I78: 0.9782907962
H79: 75 | I79: 0.8116889029
H80: 76 | I80: 0.8573119332
H81: 77 | I81: 1.223386935
H82: 78 | I82: 0.9410779485
H83: 79 | I83: 0.9539339262
H84: 80 | I84: 1.257172255
H85: 81 | I85: 1.110887999
H86: 82 | I86: 0.8787555155
H87: 83 | I87: 0.8710697346
H88: 84 | I88: 1.054504983
H89: 85 | I89: 0.8770305426
H90: 86 | I90: 1.010242891
H91: 87 | I91: 1.226585136
H92: 88 | I92: 0.9126977574
H93: 89 | I93: 0.9942628435
H94: 90 | I94: 0.9877253126
H95: 91 | I95: 0.8650841466
H96: 92 | I96: 1.109184568
H97: 93 | I97: 0.9399825227
H98: 94 | I98: 1.190862847
H99: 95 | I99: 1.03501436
H100: 96 | I100: 1.186167559
H101: 97 | I101: 0.9642031797
H102: 98 | I102: 1.138977484
H103: 99 | I103: 1.02820596
H104: 100 | I104: 0.9823488553
H105: 101 | I105: 1.245207111
H106: 102 | I106: 0.9742170169
H107: 103 | I107: 1.129552311
H108: 104 | I108: 0.9794234427
H109: 105 | I109: 0.8840848574
H110: 106 | I110: 0.9062979292
H111: 107 | I111: 0.9875485914
H112: 108 | I112: 1.325657233
H113: 109 | I113: 1.06706132
H114: 110 | I114: 0.920408844
H115: 111 | I115: 0.8340625375
H116: 112 | I116: 0.9042551414
H117: 113 | I117: 1.298645904
H118: 114 | I118: 0.9932631544
H119: 115 | I119: 0.8347255018
H120: 116 | I120: 1.052868023
H121: 117 | I121: 0.914203478
H122: 118 | I122: 0.990013394
H123: 119 | I123: 1.151860882
H124: 120 | I124: 0.9124983885
H125: 121 | I125: 0.9471490808
H126: 122 | I126: 0.8674525451
H127: 123 | I127: 1.298149222
H128: 124 | I128: 1.13466631
H129: 125 | I129: 1.0584633
H130: 126 | I130: 1.114014179
H131: 127 | I131: 0.8561083758
H132: 128 | I132: 0.8419099593
H133: 129 | I133: =EXP(($C$5-0.5*$C$6^2)*$C$7/261+$C$6*SQRT($C$7/261)*_xlfn.NORM.S.INV(RAND())) -> 1.18680578
H134: 130 | I134: 1.135583991
H135: 131 | I135: 0.9042171306
H136: 132 | I136: 1.077578259
H137: 133 | I137: 0.8511694785
H138: 134 | I138: 0.9978505751
H139: 135 | I139: 0.9846429952
H140: 136 | I140: 0.9315297249
H141: 137 | I141: 1.094646497
H142: 138 | I142: 1.024501905
H143: 139 | I143: 1.056642033
H144: 140 | I144: 0.9539723113
H145: 141 | I145: 1.082073251
H146: 142 | I146: 0.8995563575
H147: 143 | I147: 0.8853502909
H148: 144 | I148: 0.9105692194
H149: 145 | I149: 0.9274815202
H150: 146 | I150: 1.029570529
H151: 147 | I151: 1.172128457
H152: 148 | I152: 1.102122379
H153: 149 | I153: 1.000135666
H154: 150 | I154: 0.8290026257
H155: 151 | I155: 1.143326819
H156: 152 | I156: 0.928789005
H157: 153 | I157: 1.195828316
H158: 154 | I158: 0.9797128696
H159: 155 | I159: 1.152040982
H160: 156 | I160: 0.9846639443
H161: 157 | I161: 0.9780129411
H162: 158 | I162: 0.9482146224
H163: 159 | I163: 1.021585941
H164: 160 | I164: 0.9217567767
H165: 161 | I165: 1.201948498
H166: 162 | I166: 0.7616886495
H167: 163 | I167: 1.003672093
H168: 164 | I168: 1.016882822
H169: 165 | I169: 0.8946827762
H170: 166 | I170: 1.105976966
H171: 167 | I171: 1.028017091
H172: 168 | I172: 0.8607626086
H173: 169 | I173: 1.002983684
H174: 170 | I174: 1.073065022
H175: 171 | I175: 1.105767342
H176: 172 | I176: 0.9768062397
H177: 173 | I177: 1.056485893
H178: 174 | I178: 0.8480333255
H179: 175 | I179: 0.9806727409
H180: 176 | I180: 1.127277025
H181: 177 | I181: 1.093131601
H182: 178 | I182: 0.9629978678
H183: 179 | I183: 0.8431783179
H184: 180 | I184: 1.031285814
H185: 181 | I185: 0.8857582909
H186: 182 | I186: 1.051785993
H187: 183 | I187: 0.8757171956
H188: 184 | I188: 0.9421778375
H189: 185 | I189: 1.228823533
H190: 186 | I190: 1.214783422
H191: 187 | I191: 0.9401241459
H192: 188 | I192: 1.080057474
H193: 189 | I193: 0.9221526981
H194: 190 | I194: 1.019136482
H195: 191 | I195: 0.9740685597
H196: 192 | I196: 0.8902833052
H197: 193 | I197: =EXP(($C$5-0.5*$C$6^2)*$C$7/261+$C$6*SQRT($C$7/261)*_xlfn.NORM.S.INV(RAND())) -> 0.8763612395
H198: 194 | I198: 0.9396590903
H199: 195 | I199: 0.9769531976
H200: 196 | I200: 0.8034379837
H201: 197 | I201: 1.214910167
... 4803 more rows
